bitfinex/quotes_ETHUSD_20251017
["timestamp","ask_amount","ask_price","bid_price","bid_amount"]
[1760712313384,0.4507,3757.2,3754.8,1.728]
[1760712313552,0.4507,3757.2,3756.0,2.6623432]
[1760712313872,2.66186132,3756.8,3755.7,2.66256357]
[1760712314179,0.6336,3756.6,3754.9,0.1728]
[1760712314385,0.6336,3756.4,3753.4,0.2142]
[1760712314584,0.6336,3756.2,3755.2,2.66296173]
[1760712314748,0.4507,3756.1,3753.5,1.729]
[1760712314945,0.6336,3756.0,3754.9,2.66314781]
[1760712315180,0.2346,3755.9,3754.2,1.728]
[1760712315479,0.2346,3755.9,3754.3,0.1728]
[1760712315774,1.0843,3755.8,3753.5,0.001]
[1760712315936,0.4507,3755.8,3753.5,0.001]
[1760712316286,0.6336,3755.2,3753.5,0.001]
[1760712316582,2.66218035,3756.4,3755.4,2.66282531]
[1760712316784,0.4507,3756.7,3754.7,2.66332862]
[1760712316935,0.41890265,3756.9,3755.2,1.728]
[1760712317136,0.0012,3756.9,3754.8,1.99433286]
[1760712317351,0.0012,3756.9,3756.7,2.66189463]
[1760712317580,0.0012,3756.9,3755.7,2.66261776]
[1760712317736,0.0012,3756.9,3755.3,2.66290309]
[1760712317737,0.0012,3756.9,3755.3,1.728]
[1760712317959,0.0012,3756.9,3755.5,1.728]
[1760712318185,0.0012,3756.9,3756.8,2.66183986]
[1760712318387,0.0012,3756.9,3756.8,2.68845825]
[1760712318702,0.0012,3756.9,3756.8,2.66183986]
[1760712319194,0.0012,3756.9,3755.7,2.648478]
[1760712319368,0.0012,3756.9,3756.8,2.66183986]
[1760712319863,0.0012,3756.9,3756.8,4.38983986]
[1760712320056,0.0012,3756.9,3756.8,10.64608586]
[1760712320278,0.0012,3756.9,3756.8,7.58187386]
[1760712321201,0.0012,3756.9,3756.8,23.31482186]
[1760712321401,0.0012,3756.9,3756.8,25.27889724]
[1760712321562,0.0012,3756.9,3756.8,2.66183986]
[1760712321902,0.0012,3756.9,3756.8,4.38983986]
[1760712322287,0.0012,3756.9,3756.8,10.67426586]
[1760712322489,0.0012,3756.9,3756.8,4.38983986]
[1760712322791,0.002,3758.9,3757.0,0.6336]
[1760712322979,0.2346,3758.9,3757.1,2.7971106]
[1760712323294,0.002,3757.7,3757.6,2.66127315]
[1760712323857,0.002,3757.7,3757.1,3.73067501]
[1760712323858,0.002,3757.7,3757.1,1.0691106]
[1760712324075,0.002,3757.7,3757.6,2.66127315]
[1760712324557,0.002,3757.7,3756.5,1.728]
[1760712324801,0.002,3757.7,3755.7,2.66258093]
[1760712324802,0.002,3757.7,3756.3,1.728]
[1760712325104,0.002,3757.7,3757.4,2.66139747]
[1760712325413,0.002,3757.7,3756.0,2.66240681]
[1760712325720,0.002,3757.7,3757.6,2.66127315]
[1760712325891,0.002,3757.7,3756.2,2.662207]
[1760712326209,0.002,3757.7,3757.6,2.66127315]
[1760712326515,0.002,3757.7,3756.6,1.728]
[1760712326724,0.002,3757.7,3756.1,0.31634146]
[1760712327012,0.002,3757.7,3755.4,2.66283218]
[1760712327013,2.1957,3757.6,3755.4,2.66283218]
[1760712327315,0.002,3757.7,3755.9,1.728]
[1760712327510,0.002,3757.7,3757.3,2.66146532]
[1760712327818,0.002,3757.7,3756.0,2.66240681]
[1760712328017,0.002,3757.7,3756.5,4.39002636]
[1760712328216,0.002,3757.7,3757.6,2.66127315]
[1760712328990,0.002,3757.7,3757.6,5.07164715]
[1760712329215,0.002,3757.7,3757.6,4.41588588]
[1760712329523,0.002,3757.7,3757.6,8.19861415]
[1760712329724,0.002,3757.7,3757.6,6.56426615]
[1760712329927,0.002,3757.7,3757.6,20.59047883]
[1760712330253,0.002,3757.7,3757.6,20.01236783]
[1760712330410,0.002,3757.7,3757.6,13.55250383]
[1760712330599,0.002,3757.7,3757.6,11.73220383]
[1760712330801,0.002,3757.7,3757.6,8.29142983]
[1760712331031,0.002,3757.7,3757.6,5.31183783]
[1760712331407,0.002,3757.7,3757.6,10.90626383]
[1760712331609,0.4677,3760.2,3757.7,1.728]
[1760712331814,0.04635849,3760.4,3760.3,2.65936228]
[1760712332023,0.88494592,3761.3,3758.8,1.728]
[1760712332024,0.4677,3760.8,3758.8,1.728]
[1760712332222,0.09223569,3761.5,3759.7,2.65972866]
[1760712332223,3.1268427,3760.7,3759.7,2.65972866]
[1760712332444,0.4677,3761.1,3760.3,2.65930499]
[1760712332741,0.4677,3760.9,3759.2,2.66014045]
[1760712332947,0.4677,3760.9,3759.5,2.65992818]
[1760712333116,0.04634919,3761.3,3760.9,2.65893802]
[1760712333309,0.4669,3761.6,3760.9,2.65892142]
[1760712333515,0.4669,3761.6,3761.4,2.65857567]
[1760712333742,0.4669,3761.6,3760.7,2.65907942]
[1760712333743,0.2326,3762.0,3760.7,2.65905539]
[1760712333958,0.2326,3762.0,3760.8,1.99390554]
[1760712334259,0.2326,3763.0,3761.0,1.728]
[1760712334412,0.2326,3763.0,3762.6,2.65771893]
[1760712334611,0.2326,3763.4,3762.7,2.65766603]
[1760712334839,0.002,3763.6,3762.7,2.65766603]
[1760712335041,0.002,3763.6,3762.7,4.38566603]
[1760712335242,0.002,3763.6,3762.7,5.09001169]
[1760712335446,0.002,3763.6,3762.7,10.43313135]
[1760712335651,0.0008,3762.8,3762.7,5.09001169]
[1760712335947,0.0008,3762.8,3762.7,7.77982869]
[1760712336111,0.0008,3762.8,3762.7,7.27548903]
[1760712336312,0.0008,3762.8,3762.7,4.38566603]
[1760712336711,0.0008,3762.8,3762.7,10.72179569]
[1760712336911,0.002,3763.6,3762.7,10.72179569]
[1760712336912,1e-08,3763.2,3762.8,1.728]
[1760712337145,1e-08,3763.2,3763.1,8.48940654]
[1760712337536,1e-08,3763.2,3763.1,12.60012554]
[1760712337870,1e-08,3763.2,3763.1,11.51246154]
[1760712338345,0.002,3763.6,3763.5,2.6571011]
[1760712338544,0.002,3763.6,3763.5,37.3851011]
[1760712338758,0.002,3763.6,3763.5,40.01758063]
[1760712339052,0.002,3763.6,3763.5,13.75161163]
[1760712339359,0.002,3763.6,3763.5,12.20758763]
[1760712339514,0.04629352,3766.6,3763.7,30.0]
[1760712339715,0.04629352,3766.6,3764.1,1.728]
[1760712339915,0.04629352,3766.6,3764.3,1.728]
[1760712340147,0.7003,3767.2,3766.3,2.65511235]
[1760712340387,0.7003,3767.2,3765.3,2.65582639]
[1760712340388,0.2326,3767.5,3765.9,1.728]
[1760712340560,0.2326,3767.5,3765.9,7.38339182]
[1760712340561,0.7003,3767.5,3765.9,7.38339182]
[1760712340850,2.65442093,3767.3,3765.7,4.3835037]
[1760712341039,2.65456186,3767.1,3765.9,1.728]
[1760712341367,3.12240009,3767.0,3765.1,2.65597195]
[1760712341664,3.12240009,3767.0,3764.9,2.999]
[1760712341665,2.65493712,3766.6,3765.0,1.728]
[1760712341844,1.728,3764.9,3762.3,0.001]
[1760712342044,0.82966,3764.8,3762.3,0.001]
[1760712342261,0.002,3763.6,3762.3,0.001]
[1760712342422,0.4677,3763.5,3762.3,0.001]
[1760712342619,0.2326,3762.7,3762.3,0.001]
[1760712342819,0.4677,3763.5,3762.3,0.001]
[1760712343027,0.002,3763.6,3763.5,2.6571011]
[1760712343246,0.002,3763.6,3763.5,2.92281121]
[1760712343868,0.002,3763.6,3762.6,3.015]
[1760712344481,0.002,3763.6,3763.5,6.8053471]
[1760712344666,0.002,3763.6,3763.5,4.5434011]
[1760712345044,0.002,3763.6,3763.5,9.19377311]
[1760712345344,1e-08,3764.0,3763.9,6.45525172]
[1760712345552,1e-08,3764.0,3762.7,3.40419]
[1760712345778,1e-08,3764.0,3762.3,0.001]
[1760712345779,0.7003,3763.9,3762.3,0.001]
[1760712346285,2.65763792,3762.8,3762.3,0.001]
[1760712346587,4.38587795,3762.4,3762.3,0.001]
[1760712346745,2.65816055,3762.0,3760.4,1.728]
[1760712346951,2.65816055,3762.0,3760.7,2.65907763]
[1760712347253,2.65816055,3762.0,3759.7,2.6597808]
[1760712347254,2.65910133,3760.7,3759.7,2.6597808]
[1760712347472,0.2326,3760.6,3758.4,8.632542]
[1760712347746,0.2326,3762.0,3758.8,1.728]
[1760712347747,0.2326,3761.8,3758.8,1.728]
[1760712348090,0.6336,3761.6,3758.9,0.1728]
[1760712348246,0.41707555,3761.4,3758.1,17.302071]
[1760712348445,0.4677,3761.5,3761.2,2.65868182]
[1760712348661,0.2326,3761.8,3760.0,12.535822]
[1760712348888,0.2326,3761.8,3760.6,1.728]
[1760712349063,0.4677,3761.9,3761.5,2.65844367]
[1760712349386,0.4677,3761.8,3760.0,1.728]
[1760712349543,0.4677,3761.8,3760.6,2.65908263]
[1760712349747,2.65850465,3761.6,3760.1,0.45479265]
[1760712350068,0.4677,3761.8,3759.7,3.07315]
[1760712350069,2.65837254,3761.7,3759.7,3.07315]
[1760712350270,0.4677,3761.8,3759.9,5.4835]
[1760712350471,0.4677,3761.8,3760.1,1.728]
[1760712350660,0.4677,3761.8,3760.2,0.18689433]
[1760712350857,0.4677,3761.8,3760.3,1.728]
[1760712351061,0.4677,3761.8,3760.4,0.18883]
[1760712351259,0.04633387,3762.4,3760.5,0.0265922]
[1760712351462,0.04633387,3762.4,3761.1,2.65878307]
[1760712351671,0.04633387,3762.4,3761.8,2.65829141]
[1760712351874,0.04633387,3762.4,3760.9,2.65893802]
[1760712352073,0.04633387,3762.4,3761.1,2.65879662]
[1760712352295,0.4616,3762.3,3759.4,0.453]
[1760712352596,0.4616,3762.3,3759.0,3.037]
[1760712352597,5.01984564,3761.9,3760.3,2.6593503]
[1760712352795,0.6336,3761.7,3759.2,2.66014045]
[1760712352994,2.65873237,3761.2,3759.5,1.728]
[1760712353200,0.4616,3761.1,3759.2,0.453]
[1760712353371,2.65866055,3761.3,3761.0,0.1328]
[1760712353372,1.728,3761.3,3761.0,0.1328]
[1760712353578,0.4616,3761.2,3761.0,0.1328]
[1760712353995,0.4616,3761.1,3761.0,0.1328]
[1760712354294,3.12039662,3761.1,3761.0,0.1328]
[1760712354469,0.4616,3761.1,3761.0,0.1328]
[1760712354870,3.12039662,3761.1,3761.0,0.1328]
[1760712355077,2.65901552,3760.8,3760.7,0.1328]
[1760712355426,0.4170583,3761.6,3760.0,0.18689574]
[1760712355707,0.4616,3761.5,3760.8,2.65897764]
[1760712355860,0.4616,3761.5,3759.5,2.181]
[1760712356060,1.728,3761.4,3759.9,2.65958599]
[1760712356260,0.4616,3761.5,3760.9,2.6589213]
[1760712356510,0.4616,3761.5,3760.9,2.65890727]
[1760712356725,0.4616,3761.5,3760.3,0.02659362]
[1760712356883,0.2326,3761.8,3760.0,0.2659586]
[1760712356884,0.4616,3761.4,3760.0,0.2659586]
[1760712357208,0.2326,3760.1,3758.1,2.540012]
[1760712357409,0.2326,3760.1,3758.8,2.66042353]
[1760712357609,0.2326,3760.1,3758.2,0.3151312]
[1760712357814,0.2326,3760.1,3758.0,0.1583]
[1760712357815,2.65977129,3759.8,3758.0,0.1583]
[1760712357985,2.89240684,3759.7,3758.7,2.66049276]
[1760712358191,2.89240684,3759.7,3758.0,0.1583]
[1760712358192,0.4616,3759.6,3758.0,0.1583]
[1760712358425,2.66068667,3758.5,3756.8,2.66183986]
[1760712358630,0.4616,3758.7,3758.1,2.6608653]
[1760712358812,0.2326,3759.7,3758.2,0.02660848]
[1760712359143,0.2326,3759.7,3758.1,0.1583]
[1760712359144,1.728,3759.6,3758.3,0.02660777]
[1760712359435,0.2326,3759.7,3758.3,1.728]
[1760712359610,0.2326,3759.7,3758.4,0.18863]
[1760712359787,0.2326,3759.7,3757.9,1.728]
[1760712360093,0.4616,3759.6,3757.6,0.453]
[1760712360296,0.2326,3760.1,3758.3,0.001]
[1760712360488,0.2326,3760.6,3759.8,2.65969368]
[1760712360683,0.2326,3761.0,3759.4,1.8873]
[1760712360992,0.2326,3761.0,3759.0,0.453]
[1760712360993,0.4616,3760.9,3759.9,2.65959478]
[1760712361297,0.2326,3761.8,3760.0,0.02659574]
[1760712361298,0.4616,3761.5,3760.0,0.02659574]
[1760712361496,0.4616,3761.5,3759.9,2.6596452]
[1760712361700,0.4616,3761.5,3760.3,2.65935477]
[1760712361930,0.4616,3761.5,3759.7,1.728]
[1760712362085,0.4616,3761.5,3760.0,2.65952473]
[1760712362291,0.4616,3761.5,3761.0,2.65883753]
[1760712362522,0.4616,3761.5,3761.3,2.65858871]
[1760712362723,0.27894634,3762.0,3761.4,2.65853496]
[1760712363027,0.27894634,3762.0,3760.5,2.65922084]
[1760712363028,2.65831035,3761.8,3760.8,2.65898768]
[1760712363201,0.57816035,3761.8,3760.2,1.728]
[1760712363530,0.6336,3761.6,3759.5,0.45473076]
[1760712363725,0.6336,3761.6,3757.6,2.66125211]
[1760712363726,0.6336,3761.0,3758.1,0.4381]
[1760712363899,2.65922363,3760.5,3758.1,0.4381]
[1760712364106,2.65937126,3760.3,3759.6,2.65979358]
[1760712364415,0.2326,3760.9,3760.4,2.6592343]
[1760712364614,0.4555,3761.3,3759.7,2.65978668]
[1760712364812,0.41710239,3761.4,3760.0,2.65957446]
[1760712365026,0.4555,3761.9,3761.2,2.65866877]
[1760712365244,0.2326,3762.0,3760.5,2.65915159]
[1760712365390,1.728,3761.6,3761.2,0.1328]
[1760712365590,0.2326,3762.0,3760.3,1.728]
[1760712365791,0.002,3762.4,3760.8,2.65900872]
[1760712365998,0.002,3762.4,3761.1,1.728]
[1760712366220,0.002,3762.4,3760.6,1.728]
[1760712366490,0.002,3762.4,3761.7,2.65831838]
[1760712366727,0.002,3762.4,3761.8,2.65824879]
[1760712366932,0.002,3762.4,3761.6,2.65840561]
[1760712367118,0.002,3762.4,3761.0,1.728]
[1760712367306,2.65801924,3762.2,3761.1,2.83159082]
[1760712367493,0.002,3762.4,3761.7,2.65836993]
[1760712367695,0.002,3762.4,3760.8,1.728]
[1760712368004,0.002,3762.4,3761.7,2.65832426]
[1760712368204,0.002,3762.4,3760.8,2.7997]
[1760712368405,0.002,3762.4,3762.3,2.65794859]
[1760712369105,0.002,3762.4,3762.0,0.1583]
[1760712369429,0.002,3762.4,3762.3,2.65794859]
[1760712369793,0.002,3762.4,3762.3,3.62765127]
[1760712370104,0.04631661,3763.8,3763.7,4.3849599]
[1760712370299,0.2326,3765.9,3763.9,2.65681872]
[1760712370501,0.73439346,3765.9,3763.9,7.30532672]
[1760712370694,0.73439346,3765.9,3763.9,8.37702672]
[1760712370894,0.6881,3765.9,3763.9,9.49615538]
[1760712371135,0.2326,3767.0,3763.9,9.49615538]
[1760712371136,0.50178476,3766.5,3763.9,9.49615538]
[1760712371302,0.04628476,3766.5,3763.9,9.49615538]
[1760712371635,0.4555,3766.3,3763.9,6.57564738]
[1760712371823,0.2326,3765.7,3763.9,5.94204738]
[1760712372018,2.65575621,3765.5,3763.9,5.94204738]
[1760712372196,0.2326,3765.7,3763.9,5.94204738]
[1760712372529,0.2326,3765.7,3763.9,8.99964738]
[1760712372719,0.6881,3766.6,3763.9,8.36604738]
[1760712372916,0.6881,3766.6,3763.9,8.99964738]
[1760712373291,0.6881,3766.6,3763.9,12.01164738]
[1760712373732,0.6881,3766.6,3763.9,12.01064738]
[1760712373913,2.65477562,3766.8,3763.9,12.01064738]
[1760712373914,0.09999999,3770.2,3767.5,30.0]
[1760712374124,0.2326,3772.0,3767.7,30.0]
[1760712374125,0.4555,3771.1,3767.7,30.0]
[1760712374325,0.2326,3770.8,3769.5,2.65281995]
[1760712374525,0.2326,3770.8,3769.0,2.3616]
[1760712374725,0.2326,3770.8,3770.1,2.65241262]
[1760712374938,0.2326,3770.8,3768.8,5.184028]
[1760712375141,0.4555,3770.7,3768.7,0.1578]
[1760712375317,0.4555,3770.7,3768.0,1.728]
[1760712375516,0.4555,3770.6,3767.9,2.65399824]
[1760712375731,1.0891,3770.5,3769.9,0.132]
[1760712376061,0.6336,3769.8,3769.3,0.132]
[1760712376236,0.6336,3769.8,3767.0,0.5959]
[1760712376237,0.6336,3769.6,3767.0,0.5959]
[1760712376417,0.6336,3769.1,3768.6,0.132]
[1760712376759,0.2326,3768.7,3766.4,2.65505522]
[1760712376922,0.6336,3768.4,3767.9,0.132]
[1760712377121,0.132,3768.0,3767.4,0.132]
[1760712377429,0.2326,3767.5,3767.2,0.132]
[1760712377628,0.2326,3767.5,3764.9,3.09415835]
[1760712377629,0.4555,3767.4,3764.9,0.4381]
[1760712377829,0.132,3767.2,3766.5,0.132]
[1760712378032,0.43389675,3767.2,3766.5,0.132]
[1760712378233,0.2326,3766.6,3764.3,0.4381]
[1760712378433,0.2326,3766.6,3766.3,0.132]
[1760712378609,0.132,3767.0,3766.3,0.132]
[1760712378811,0.04627475,3766.5,3766.4,2.65505522]
[1760712379014,0.04627475,3766.5,3765.4,2.68231794]
[1760712379015,0.4555,3767.6,3765.3,0.5959]
[1760712379235,0.4555,3767.6,3767.2,0.132]
[1760712379448,1.0891,3767.4,3765.5,2.65563655]
[1760712379645,0.6336,3767.2,3764.9,2.110956]
[1760712379943,0.6336,3767.2,3764.8,2.81391689]
[1760712379944,2.65470536,3766.9,3765.0,2.65604249]
[1760712380145,0.6881,3766.8,3764.8,0.1578]
[1760712380343,3.34288069,3766.8,3764.5,0.4381]
[1760712380546,0.6881,3766.8,3764.6,2.840177]
[1760712380748,0.04627666,3767.1,3764.9,1.728]
[1760712381060,0.002,3767.2,3765.0,0.4381]
[1760712381365,0.002,3767.2,3767.1,2.65456186]
[1760712382976,0.002,3767.2,3767.1,2.68110747]
[1760712383483,1e-08,3767.6,3767.2,14.256489]
[1760712383648,1e-08,3767.6,3767.5,21.37106496]
[1760712383850,0.4521,3767.5,3764.4,0.1578]
[1760712384050,0.6336,3767.1,3764.2,8.737039]
[1760712384252,0.6336,3767.1,3764.1,2.65667755]
[1760712384253,2.1801,3767.0,3764.1,2.9515]
[1760712384456,2.40136,3766.8,3764.0,0.1591]
[1760712384685,0.6336,3766.1,3764.5,2.65633347]
[1760712384849,0.6336,3765.9,3763.9,2.65681872]
[1760712385045,0.6336,3765.7,3763.2,0.1578]
[1760712385342,0.4521,3765.6,3763.2,0.1578]
[1760712385541,0.6336,3765.5,3763.4,1.728]
[1760712385742,0.86874152,3766.3,3763.7,2.6569599]
[1760712385943,0.86874152,3766.3,3764.2,1.728]
[1760712386145,0.41664152,3766.3,3766.2,2.65519621]
[1760712386346,0.41664152,3766.3,3764.7,1.728]
[1760712386347,0.4521,3767.1,3765.2,1.86]
[1760712386546,0.4521,3768.4,3767.5,2.65428002]
[1760712386992,0.22,3769.0,3767.5,2.65428002]
[1760712388050,0.04625069,3769.8,3767.5,9.48513102]
[1760712388246,0.4521,3769.2,3767.5,5.62428002]
[1760712388548,0.22,3770.0,3767.9,4.38199824]
[1760712388775,0.0462408,3769.7,3767.9,2.65399824]
[1760712388953,0.4521,3769.5,3767.9,2.65399824]
[1760712389149,0.0462408,3769.7,3766.9,0.6092]
[1760712389150,0.22,3768.8,3766.9,0.6092]
[1760712389361,0.0462408,3769.7,3767.9,5.13849824]
[1760712389568,0.0462408,3769.7,3769.6,2.65280135]
[1760712389772,0.4521,3770.5,3769.0,2.6531906]
[1760712389971,0.4521,3770.5,3767.8,0.4501]
[1760712389972,0.4521,3770.5,3768.1,1.728]
[1760712390289,0.49833628,3770.5,3769.8,2.65259137]
[1760712390489,0.49833628,3770.5,3768.3,3.4405]
[1760712390490,0.49833628,3770.5,3768.3,2.158]
[1760712390690,0.49833628,3770.5,3768.2,0.4501]
[1760712390878,0.04623628,3770.5,3770.3,2.65228178]
[1760712391083,2.65238623,3770.2,3768.2,2.65378695]
[1760712391284,3.10434615,3770.4,3768.8,2.65336446]
[1760712391285,0.4521,3770.4,3768.8,2.65336446]
[1760712391591,0.4521,3770.3,3767.8,1.8729]
[1760712391791,3.10442002,3770.3,3769.0,2.65318343]
[1760712391993,3.10442002,3770.3,3767.8,2.7989471]
[1760712391994,2.65251989,3770.0,3767.9,4.688]
[1760712392207,0.22,3769.9,3768.1,1.728]
[1760712392362,0.22,3769.9,3768.0,2.65392781]
[1760712392363,2.87260175,3769.9,3767.9,2.65399824]
[1760712392556,2.87260175,3769.9,3767.8,0.1449]
[1760712392557,0.4521,3769.8,3768.4,2.653625]
[1760712392872,1.0857,3769.7,3767.1,0.4501]
[1760712393181,1.0857,3769.7,3766.3,0.6092]
[1760712393182,0.6336,3769.4,3766.3,0.6092]
[1760712393381,2.65388166,3768.1,3766.3,0.6092]
[1760712393571,0.6721,3768.0,3765.9,0.1449]
[1760712393771,0.22,3767.9,3766.3,2.65511906]
[1760712393984,0.6336,3767.8,3765.4,2.1781]
[1760712394192,0.6336,3767.7,3765.4,0.4501]
[1760712394392,0.4521,3767.6,3765.4,0.4501]
[1760712394597,0.4521,3767.6,3765.6,1.728]
[1760712394803,0.49836761,3767.6,3765.4,0.4501]
[1760712394970,0.49836761,3767.6,3765.3,0.1449]
[1760712395178,0.49836761,3767.6,3765.6,8.904551]
[1760712395509,0.4521,3767.5,3765.4,2.087]
[1760712395717,0.4521,3767.5,3765.5,0.02655689]
[1760712395997,0.4521,3767.5,3765.3,0.1449]
[1760712396202,0.4521,3767.5,3765.3,0.595]
[1760712396499,2.65454936,3767.2,3765.6,2.65561929]
[1760712396700,0.4521,3767.5,3765.3,0.595]
[1760712396903,0.6336,3767.6,3764.9,0.1571]
[1760712396904,0.6336,3767.3,3764.9,0.1571]
[1760712397069,0.4521,3767.2,3765.0,0.47666042]
[1760712397408,0.4521,3767.2,3765.2,2.65590141]
[1760712397589,0.4521,3767.2,3766.4,2.6550472]
[1760712397802,0.4521,3767.2,3765.1,0.1449]
[1760712397967,1.0857,3767.1,3765.1,0.1449]
[1760712398273,0.6336,3766.9,3764.8,2.65617141]
[1760712398618,0.6336,3766.9,3764.1,2.81373115]
[1760712398619,0.04627343,3766.9,3766.8,2.65477328]
[1760712398812,0.04627343,3766.9,3766.8,0.02654773]
[1760712399100,0.22,3768.0,3766.7,2.65483133]
[1760712399101,2.654152,3767.7,3766.7,2.65483133]
[1760712399264,2.654152,3767.7,3765.6,3.10571929]
[1760712399265,0.4521,3767.6,3766.8,0.132]
[1760712399464,0.4521,3767.6,3767.1,0.132]
[1760712399688,0.22,3767.8,3764.8,0.1449]
[1760712399689,0.4521,3767.5,3765.4,2.65572779]
[1760712399886,0.4521,3767.5,3766.9,0.132]
[1760712399887,2.65635048,3767.4,3766.9,0.132]
[1760712400096,0.4521,3767.3,3766.9,0.132]
[1760712400300,2.65463233,3767.0,3766.9,0.132]
[1760712400480,0.002,3767.4,3766.9,0.132]
[1760712400676,0.002,3767.4,3766.1,0.1591]
[1760712400901,0.002,3767.4,3766.3,6.801987]
[1760712401103,0.002,3767.4,3767.3,2.65442093]
[1760712401400,0.002,3767.4,3767.3,2.68096513]
[1760712401602,0.002,3767.4,3766.2,3.10529621]
[1760712401810,0.002,3767.4,3767.3,2.65442093]
[1760712402302,0.002,3767.4,3767.3,3.10452093]
[1760712402468,0.002,3767.4,3767.3,2.65442093]
[1760712403069,0.002,3767.4,3767.3,3.10452093]
[1760712403403,0.002,3767.4,3767.3,2.65442093]
[1760712404104,0.002,3767.4,3766.5,2.65493899]
[1760712404282,0.002,3767.4,3766.3,1.8729]
[1760712404479,0.002,3767.4,3766.3,0.1449]
[1760712404806,2.65447543,3767.3,3765.8,2.65547825]
[1760712405103,2.65504573,3766.5,3765.6,2.65558843]
[1760712405278,0.4521,3766.6,3764.9,0.001]
[1760712405478,2.65525621,3766.2,3765.4,2.65571049]
[1760712405679,0.4521,3766.6,3764.9,0.001]
[1760712405866,3.10737205,3766.1,3764.9,0.001]
[1760712406178,0.6336,3766.0,3764.9,0.001]
[1760712406364,2.65604249,3765.0,3764.9,0.001]
[1760712406573,3.28964249,3765.0,3764.9,0.001]
[1760712406799,3.74174249,3765.0,3764.9,0.001]
[1760712407068,0.4521,3765.7,3764.9,0.001]
[1760712407310,2.6555479,3765.8,3764.9,0.001]
[1760712407609,0.67987766,3766.7,3764.9,0.001]
[1760712407610,0.6336,3766.1,3764.9,0.001]
[1760712407810,0.4521,3766.3,3764.9,0.001]
[1760712408197,0.4521,3766.3,3764.9,2.65711153]
[1760712408423,0.4521,3766.2,3764.9,0.001]
[1760712408640,2.65560925,3765.7,3764.9,0.001]
[1760712408943,2.65604249,3765.0,3764.9,0.001]
[1760712409259,2.65660698,3764.2,3764.1,0.001]
[1760712409533,2.65639527,3764.5,3764.1,0.001]
[1760712409823,2.4001,3764.9,3764.1,0.001]
[1760712410020,0.6721,3764.9,3764.1,0.001]
[1760712410231,2.65618732,3764.8,3764.1,0.001]
[1760712410526,0.6721,3764.9,3764.1,0.001]
[1760712410733,0.04630076,3765.0,3764.2,0.1571]
[1760712411029,0.4521,3765.7,3764.1,0.001]
[1760712411192,0.4521,3765.7,3764.9,2.65606765]
[1760712411531,0.4521,3765.7,3764.9,2.65611207]
[1760712411688,0.4521,3765.7,3764.9,2.65607931]
[1760712411890,0.4521,3765.7,3764.1,0.1581]
[1760712412220,3.10765938,3765.7,3764.2,2.65660698]
[1760712412531,0.4521,3765.7,3764.1,0.1581]
[1760712412727,0.04629075,3766.0,3764.3,0.02656536]
[1760712412899,0.4419,3766.5,3764.7,2.65622747]
[1760712412900,3.09692457,3766.5,3764.7,2.65622747]
[1760712413104,0.4419,3766.5,3764.8,0.02656183]
[1760712413308,2.87505799,3766.4,3765.6,2.65557144]
[1760712413495,0.4419,3766.5,3764.8,0.02656183]
[1760712413695,0.4419,3766.5,3764.3,1.728]
[1760712413902,0.4419,3766.5,3765.4,2.65570277]
[1760712414132,0.4419,3766.5,3764.2,0.4544]
[1760712414333,0.4419,3766.5,3763.1,0.7805]
[1760712414334,2.8035,3766.5,3764.1,0.1581]
[1760712414534,0.6336,3765.9,3764.1,0.001]
[1760712414912,0.2368,3765.8,3764.2,0.1571]
[1760712415233,2.65558728,3765.7,3764.2,0.1571]
[1760712415536,0.4419,3765.6,3764.1,2.65762578]
[1760712415761,0.4419,3765.6,3764.2,0.18366606]
[1760712415965,0.2368,3765.8,3764.3,2.6565364]
[1760712416174,0.2368,3765.8,3764.1,0.001]
[1760712416175,2.65574927,3765.5,3764.7,2.65624538]
[1760712416477,2.65534993,3766.0,3765.2,2.65585297]
[1760712416637,0.2368,3765.9,3764.3,0.1571]
[1760712416824,2.89221517,3765.9,3765.1,2.65590354]
[1760712417018,2.89221517,3765.9,3764.2,2.65659175]
[1760712417019,0.4419,3765.8,3764.2,2.65659175]
[1760712417265,0.4419,3765.8,3764.1,0.001]
[1760712417266,2.65571933,3765.5,3764.1,0.001]
[1760712417434,2.65605636,3765.0,3764.2,2.65654439]
[1760712417641,3.09739605,3765.8,3764.7,2.65619573]
[1760712417840,3.09739605,3765.8,3764.1,0.18466677]
[1760712417841,0.4419,3765.8,3764.1,0.18466677]
[1760712418151,0.67988872,3766.2,3764.3,7.3367824]
[1760712418152,0.04628872,3766.2,3764.3,7.3367824]
[1760712418326,0.04628872,3766.2,3764.2,0.4544]
[1760712418327,0.04628872,3766.2,3765.5,2.65563356]
[1760712418530,0.04628872,3766.2,3765.6,2.65561625]
[1760712418749,0.04628872,3766.2,3765.7,2.65549808]
[1760712418950,0.04628872,3766.2,3765.1,2.80793421]
[1760712418951,0.4419,3766.7,3765.5,2.65564172]
[1760712419160,2.65507283,3766.4,3765.6,2.65559679]
[1760712419432,0.4419,3766.7,3765.1,2.80790877]
[1760712419649,2.65547661,3765.9,3764.6,1.728]
[1760712419861,0.6336,3766.6,3764.5,0.001]
[1760712420036,2.65591416,3765.2,3764.5,2.65738297]
[1760712420366,2.89221892,3765.9,3764.5,0.001]
[1760712420367,2.65598355,3765.1,3764.5,0.001]
[1760712420569,0.4419,3765.6,3764.5,0.001]
[1760712420782,0.002,3765.7,3764.5,0.001]
[1760712421080,2.65598644,3765.1,3764.5,0.001]
[1760712421232,0.4419,3765.6,3765.1,0.132]
[1760712421433,0.134,3765.7,3765.1,0.132]
[1760712421669,0.002,3765.7,3765.6,2.65561929]
[1760712421934,0.002,3765.7,3765.6,10.75438048]
[1760712422156,0.002,3765.7,3765.6,3.09931929]
[1760712422739,0.002,3765.7,3765.6,7.39137148]